bitfinex/quotes_ETHUSD_20260207
["timestamp","ask_amount","ask_price","bid_price","bid_amount"]
[1770424797495,1.45048277,2040.8,2039.2,0.041511]
[1770424797819,1.45048277,2040.8,2039.5,0.041511]
[1770424798327,1.45048277,2040.8,2040.2,0.001]
[1770424798529,1.45048277,2040.8,2038.9,1.55576583]
[1770424798530,0.9271358,2039.1,2038.9,0.1286887]
[1770424798699,1.34808277,2039.4,2038.2,0.29566237]
[1770424798700,1.34808277,2039.4,2038.2,0.25415137]
[1770424798899,1.34808277,2039.4,2037.7,1.38556613]
[1770424799098,1.34808277,2039.4,2038.1,1.22663243]
[1770424799329,6.16999158,2039.6,2038.3,1.38556613]
[1770424799629,6.16999158,2039.6,2038.3,2.61207471]
[1770424799821,6.16999158,2039.6,2039.1,0.001]
[1770424800126,6.16999158,2039.6,2038.7,4.90507368]
[1770424800356,5.92442289,2039.6,2038.9,1.22614369]
[1770424800717,0.32945158,2040.3,2038.9,1.38556613]
[1770424801100,0.32945158,2040.3,2039.4,0.041511]
[1770424801311,0.32945158,2040.3,2039.5,0.041511]
[1770424801530,15.74310298,2041.3,2039.8,0.041511]
[1770424801718,1.22476974,2041.2,2039.5,0.041511]
[1770424801922,2.57285251,2041.2,2039.5,1.42707713]
[1770424802232,2.57285251,2041.2,2039.8,0.041511]
[1770424802432,1.22476974,2041.2,2039.9,1.22555027]
[1770424802639,1.22476974,2041.2,2040.1,0.041511]
[1770424803006,1.22656304,2041.6,2040.5,2.755264]
[1770424803206,0.002,2041.6,2040.7,0.041511]
[1770424803406,1.22653486,2041.6,2040.6,0.2796775]
[1770424803918,0.002,2041.6,2040.6,0.2796775]
[1770424804105,0.002,2041.6,2040.7,0.041511]
[1770424804505,14.54108942,2041.4,2040.6,0.2796775]
[1770424804737,14.54108942,2041.4,2040.1,0.041511]
[1770424805513,15.88917219,2041.4,2040.1,0.041511]
[1770424806634,1.22470974,2041.3,2040.1,0.041511]
[1770424807002,1.22470974,2041.3,2040.1,1.26693703]
[1770424807207,1.22470974,2041.3,2040.1,0.041511]
[1770424807705,1.22470974,2041.3,2040.1,1.26693459]
[1770424807901,1.22470974,2041.3,2040.1,0.041511]
[1770424808105,1.22470974,2041.3,2040.1,1.88381537]
[1770424808516,1.22470974,2041.3,2040.1,3.17552306]
[1770424808732,14.54108942,2041.4,2040.4,0.041511]
[1770424808907,1.22469323,2041.4,2040.4,0.041511]
[1770424809105,1.22657525,2041.6,2040.7,0.041511]
[1770424809409,1.22657525,2041.6,2040.5,1.29170769]
[1770424809608,0.002,2041.6,2040.7,0.041511]
[1770424809807,1.22653244,2041.6,2040.7,0.041511]
[1770424810232,0.002,2041.6,2040.7,0.041511]
[1770424810411,1.22653175,2041.6,2040.7,0.041511]
[1770424810612,0.002,2041.8,2041.0,0.041511]
[1770424811712,0.002,2041.6,2041.0,0.041511]
[1770424811954,0.002,2041.6,2040.7,1.2665408]
[1770424811955,0.002,2041.6,2040.7,2.55825585]
[1770424812257,0.002,2041.6,2040.8,0.74585352]
[1770424812622,0.002,2041.6,2040.9,1.22494977]
[1770424813040,1.22117597,2042.2,2041.1,1.29170769]
[1770424813225,15.76226539,2042.2,2040.8,2.01233195]
[1770424813439,15.76226539,2042.2,2040.9,0.82042276]
[1770424813641,0.1024,2042.1,2040.9,0.82042276]
[1770424813946,0.1024,2042.1,2040.8,1.26651599]
[1770424814136,0.1024,2042.1,2040.8,0.041511]
[1770424814338,1.31701591,2042.1,2040.8,0.041511]
[1770424814534,1.2244698,2041.7,2040.3,1.29270769]
[1770424814747,1.2244698,2041.7,2040.4,2.55846056]
[1770424815163,1.2244698,2041.7,2040.7,0.041511]
[1770424816648,14.54108942,2042.2,2041.0,0.041511]
[1770424816855,1.22428991,2042.1,2040.8,1.29170769]
[1770424817031,1.22428991,2042.1,2040.9,0.25582635]
[1770424817228,1.22428991,2042.1,2041.0,1.33321869]
[1770424817557,4.89748803,2042.7,2041.3,0.041511]
[1770424817558,4.89601179,2042.5,2041.3,0.041511]
[1770424817924,15.76503644,2042.6,2041.6,0.041511]
[1770424818643,15.76503644,2042.6,2041.6,1.26600477]
[1770424818832,15.76503644,2042.6,2041.7,0.61643305]
[1770424819653,1.22587979,2042.7,2041.9,0.041511]
[1770424819822,0.002,2042.7,2041.9,0.041511]
[1770424820761,0.002,2042.7,2042.0,1.22428991]
[1770424820926,0.002,2042.7,2042.1,0.61631932]
[1770424821830,0.9799361,2043.0,2042.2,0.041511]
[1770424822243,0.9799361,2043.0,2042.1,0.61631932]
[1770424822447,15.52102552,2043.0,2041.6,2.55770497]
[1770424822659,16.73564143,2043.0,2041.6,1.33321869]
[1770424822834,14.54108942,2042.6,2041.6,0.041511]
[1770424823159,15.75570533,2042.6,2041.3,0.041511]
[1770424823453,15.75570533,2042.6,2041.3,0.29730949]
[1770424823642,15.75570533,2042.6,2041.0,4.9410533]
[1770424823643,1.21461591,2042.5,2041.0,1.26635702]
[1770424824039,1.21461591,2042.5,2041.1,1.22480303]
[1770424824235,15.75570533,2042.2,2040.9,1.79982635]
[1770424824641,1.21461591,2042.1,2040.9,1.79982635]
[1770424824828,1.22428991,2042.0,2040.9,1.79982635]
[1770424825029,14.54108942,2041.8,2040.9,1.79982635]
[1770424825258,15.75570533,2041.8,2040.9,1.79982635]
[1770424825666,15.75570533,2041.8,2040.3,0.001]
[1770424825667,15.75570533,2041.4,2040.3,0.001]
[1770424826055,1.21461591,2041.3,2040.3,0.001]
[1770424826949,1.22476974,2041.2,2040.3,0.001]
[1770424828146,14.54108942,2040.6,2039.6,0.041511]
[1770424828347,14.54108942,2040.6,2039.7,1.22564066]
[1770424828560,14.54108942,2040.6,2039.6,0.041511]
[1770424828756,14.54108942,2040.6,2039.6,0.65856646]
[1770424829062,1.2251899,2040.5,2039.9,0.041511]
[1770424830385,1.2251899,2040.5,2039.6,0.65856646]
[1770424830571,4.90073534,2040.6,2039.6,0.65856646]
[1770424830775,1.2251899,2040.5,2039.6,0.65856646]
[1770424831067,1.2251899,2040.5,2039.6,1.88429153]
[1770424831368,4.9000656,2040.8,2039.9,0.041511]
[1770424831572,6.11468151,2040.8,2039.9,0.041511]
[1770424831938,4.89859235,2041.5,2040.2,0.041511]
[1770424832136,6.11320826,2041.5,2040.5,0.041511]
[1770424832941,4.89859235,2041.5,2040.8,0.041511]
[1770424833138,1.21461591,2041.8,2040.5,0.041511]
[1770424833466,4.89823212,2041.8,2040.8,0.041511]
[1770424835352,0.1024,2041.8,2040.8,0.041511]
[1770424836565,1.22440983,2041.9,2040.8,1.26651989]
[1770424836766,1.22440983,2041.9,2040.8,1.26651895]
[1770424837773,2.49159414,2042.9,2040.8,1.26651895]
[1770424837774,1.22411007,2042.3,2041.4,0.041511]
[1770424838069,1.19468622,2042.1,2041.0,0.001]
[1770424839585,1.19468622,2041.9,2041.0,0.001]
[1770424842684,1.22440983,2041.8,2041.0,0.001]
[1770424843965,1.22440983,2041.8,2040.3,0.041511]
[1770424843966,1.29708622,2041.7,2040.3,0.041511]
[1770424844266,1.19468622,2041.2,2040.1,0.041511]
[1770424844587,1.19468622,2041.0,2040.1,0.041511]
[1770424844760,1.22476974,2041.3,2040.7,0.041511]
[1770424845277,2.41945596,2041.3,2040.4,0.041511]
[1770424846367,2.41945596,2041.3,2040.1,0.041511]
[1770424846690,2.41945596,2041.3,2040.4,0.041511]
[1770424847078,2.41945596,2041.3,2040.7,0.041511]
[1770424847284,1.22476974,2041.3,2040.7,0.041511]
[1770424847603,1.22476974,2041.3,2040.4,0.041511]
[1770424847965,4.89861454,2041.4,2040.7,0.041511]
[1770424848189,1.22476974,2041.3,2040.7,0.041511]
[1770424848992,1.22452978,2041.6,2040.7,0.041511]
[1770424849406,5.99194556,2043.2,2041.3,0.041511]
[1770424849576,2.42390642,2043.3,2041.3,0.040449]
[1770424849577,4.89667078,2042.3,2041.3,0.040449]
[1770424849774,4.89667078,2042.3,2041.6,0.041511]
[1770424850178,5.50894887,2042.3,2041.0,1.14726581]
[1770424850409,6.70363509,2042.3,2041.0,0.041511]
[1770424850601,1.19468622,2042.1,2040.7,0.041511]
[1770424851113,1.19468622,2041.9,2040.7,0.041511]
[1770424851408,0.1024,2041.8,2040.7,0.041511]
[1770424851703,0.35453761,2041.8,2040.7,0.041511]
[1770424851900,0.35453761,2041.8,2040.7,0.042511]
[1770424852808,0.35453761,2041.8,2040.7,0.001]
[1770424853702,1.2244698,2041.7,2040.7,0.001]
[1770424854199,1.2244698,2041.7,2040.8,0.041511]
[1770424854602,1.2244698,2041.7,2041.1,0.041511]
[1770424854802,1.22445552,2041.8,2041.1,0.041511]
[1770424855105,1.22428991,2042.0,2041.4,0.041511]
[1770424855297,1.22428991,2042.0,2041.1,0.041511]
[1770424855687,0.002,2042.1,2041.4,0.041511]
[1770424856589,0.002,2042.1,2040.9,0.041511]
[1770424858798,1.22622995,2042.1,2040.9,1.26645523]
[1770424860390,1.22622995,2042.1,2040.9,0.041511]
[1770424860592,2.42091617,2042.1,2040.9,0.041511]
[1770424861092,0.1024,2042.0,2040.9,0.041511]
[1770424863408,1.22434987,2041.9,2040.9,0.041511]
[1770424863718,1.22434987,2041.9,2040.9,0.65829018]
[1770424864618,1.22434987,2041.9,2041.2,1.14726581]
[1770424865110,1.22428991,2042.0,2041.2,1.14726581]
[1770424865425,0.002,2042.1,2041.3,1.10575481]
[1770424865716,0.001,2041.7,2041.5,0.041511]
[1770424865916,1.22305609,2042.4,2041.5,0.041511]
[1770424867222,0.2335703,2043.4,2042.4,0.041511]
[1770424867223,4.89398107,2043.4,2042.4,0.041511]
[1770424867388,4.89368822,2043.5,2042.4,0.041511]
[1770424867589,4.89368822,2043.5,2042.1,1.17534071]
[1770424867912,4.89368822,2043.5,2042.1,0.041511]
[1770424867913,1.23025158,2043.4,2042.1,0.041511]
[1770424868117,1.23025158,2043.4,2042.1,1.24586552]
[1770424868616,1.23025158,2043.4,2042.2,0.2470141]
[1770424868819,1.22333137,2043.6,2042.4,0.041511]
[1770424869325,0.002,2043.8,2042.7,0.041511]
[1770424869790,1.23025158,2043.6,2042.6,0.5]
[1770424869991,0.1024,2043.1,2041.8,0.041511]
[1770424870195,15.74294656,2043.0,2041.8,0.041511]
[1770424870598,16.97319814,2043.0,2041.8,0.041511]
[1770424871417,16.97319814,2043.0,2042.1,0.041511]
[1770424871418,1.22375055,2042.9,2042.1,0.041511]
[1770424873230,1.22375055,2042.9,2042.1,1.24586552]
[1770424873391,1.22345111,2043.4,2042.2,1.20435452]
[1770424873591,1.22345111,2043.4,2042.4,0.041511]
[1770424874895,1.22345111,2043.4,2042.4,1.24586552]
[1770424875407,4.89380444,2043.5,2042.4,1.24586552]
[1770424875804,6.12405602,2043.5,2042.3,0.24700843]
[1770424876034,6.12405602,2043.5,2042.1,0.041511]
[1770424876495,6.12405602,2043.5,2042.1,1.2657386]
[1770424876893,6.12405602,2043.5,2042.4,0.041511]
[1770424876894,0.1024,2043.4,2042.4,0.041511]
[1770424877497,1.22351098,2043.3,2042.4,0.041511]
[1770424878023,1.22551098,2043.3,2042.4,0.041511]
[1770424878236,1.22551098,2043.3,2042.7,0.041511]
[1770424878728,1.22345111,2043.4,2042.7,0.041511]
[1770424879338,1.22345111,2043.4,2042.4,0.041511]
[1770424879509,4.89566616,2043.5,2042.4,0.041511]
[1770424879704,0.002,2043.5,2042.4,0.041511]
[1770424880010,0.1044,2043.5,2042.4,0.041511]
[1770424881034,0.1044,2043.5,2042.4,1.24586552]
[1770424881234,0.002,2043.5,2042.7,1.24586552]
[1770424881624,0.002,2043.5,2042.7,2.4697273]
[1770424881836,0.002,2043.5,2042.8,0.24697273]
[1770424882335,0.002,2043.5,2042.7,0.041511]
[1770424882532,0.002,2043.5,2043.0,1.24586552]
[1770424882737,0.002,2043.8,2043.0,1.24586552]
[1770424887438,0.002,2043.8,2043.0,0.041511]
[1770424888217,0.002,2043.8,2043.3,0.041511]
[1770424888644,1.22515181,2044.0,2043.3,0.041511]
[1770424888818,4.89260727,2044.1,2043.4,1.20435452]
[1770424889017,1.22315181,2044.0,2043.4,1.20435452]
[1770424889318,17.57787428,2044.0,2042.8,1.20435452]
[1770424889526,17.57787428,2044.0,2042.5,1.22396519]
[1770424889527,1.33265158,2043.9,2042.5,1.20435452]
[1770424890112,1.22321166,2043.8,2042.5,1.20435452]
[1770424890513,2.45346324,2043.8,2042.5,1.20435452]
[1770424891038,1.33265158,2043.4,2042.3,0.001]
[1770424891353,1.33265158,2043.4,2042.0,0.001]
[1770424891918,1.33265158,2043.4,2042.7,0.001]
[1770424892113,1.33265158,2042.9,2042.0,0.001]
[1770424892318,1.22381045,2042.8,2042.0,0.001]
[1770424892612,1.83558636,2042.8,2042.0,0.001]
[1770424892835,1.22381045,2042.8,2042.0,0.001]
[1770424893926,1.22381045,2042.8,2042.1,0.041511]
[1770424894370,1.32603075,2043.1,2042.1,0.041511]
[1770424897043,1.22363075,2043.1,2042.4,0.041511]
[1770424897466,1.22345111,2043.4,2042.7,1.28849648]
[1770424897649,1.22345111,2043.4,2042.7,0.041511]
[1770424897981,1.22345111,2043.4,2042.4,0.041511]
[1770424898266,1.22345111,2043.4,2042.4,1.28849648]
[1770424898451,4.89580444,2043.6,2042.4,1.28849648]
[1770424898660,4.89580444,2043.6,2042.5,0.25125795]
[1770424898862,4.89580444,2043.6,2042.6,0.5]
[1770424899170,4.89580444,2043.6,2042.7,0.041511]
[1770424900467,0.002,2043.6,2042.7,0.041511]
[1770424902199,1.22710486,2043.3,2041.8,2.51286164]
[1770424902347,0.1024,2043.2,2041.8,2.51287722]
[1770424902543,1.22363075,2043.1,2041.8,2.51287722]
[1770424903479,1.22363075,2043.1,2042.1,0.041511]
[1770424904647,4.89452302,2043.2,2042.1,0.041511]
[1770424904849,4.89452302,2043.2,2042.6,0.001]
[1770424905051,1.22710486,2043.1,2042.0,0.001]
[1770424905356,0.1024,2043.0,2042.4,0.001]
[1770424905562,1.22710486,2043.1,2042.4,0.001]
[1770424905761,0.73451987,2043.1,2042.4,0.001]
[1770424905949,4.89452302,2043.2,2042.4,0.001]
[1770424906353,4.89452302,2043.2,2041.7,4.89777417]
[1770424906354,1.22710486,2042.8,2041.2,0.001]
[1770424906552,0.2335703,2043.0,2041.2,0.001]
[1770424906553,1.22422995,2042.1,2041.2,0.001]
[1770424907162,1.22422995,2042.1,2041.3,0.041511]
[1770424907792,1.07411007,2042.3,2041.6,0.041511]
[1770424909417,0.1024,2042.6,2041.9,0.041511]
[1770424910314,0.1024,2042.6,2041.6,0.041511]
[1770424911412,1.2239902,2042.5,2041.6,0.041511]
[1770424912322,1.2239902,2042.5,2041.6,1.28849648]
[1770424914911,1.2239902,2042.5,2041.6,0.041511]
[1770424916078,1.2239902,2042.5,2041.6,0.292825]
[1770424917577,1.22710486,2043.5,2042.2,0.041511]
[1770424917885,1.22351098,2043.3,2042.5,1.24698548]
[1770424918217,1.22351098,2043.3,2042.6,0.041511]
[1770424918426,1.22351098,2043.3,2042.6,1.28849648]
[1770424918712,0.98075455,2043.3,2042.7,1.24698548]
[1770424919702,0.002,2043.6,2042.8,1.28849648]
[1770424920400,0.002,2043.6,2042.9,1.49822214]
[1770424920587,4.64908922,2043.9,2043.4,0.041511]
[1770424920798,1.22321166,2043.8,2043.4,0.041511]
[1770424921127,1.22303214,2044.1,2043.4,1.28849648]
[1770424921624,0.002,2044.4,2043.7,0.041511]
[1770424922117,0.002,2044.4,2043.7,1.28849648]
[1770424922478,0.002,2044.4,2043.7,0.041511]
[1770424923024,1.22710486,2044.3,2043.1,0.041511]
[1770424923580,1.22297231,2044.2,2043.1,1.28849648]
[1770424923780,1.22297231,2044.2,2043.2,1.24698548]
[1770424924085,1.22297231,2044.2,2043.4,0.041511]
[1770424924368,1.22297231,2044.2,2043.4,1.28849648]
[1770424924913,1.22710486,2044.1,2043.1,0.041511]
[1770424925738,1.22309197,2044.0,2043.4,0.041511]
[1770424926249,1.22309197,2044.0,2043.1,1.74715227]
[1770424926473,1.22309197,2044.0,2043.2,0.29708348]
[1770424927222,1.22309197,2044.0,2043.2,2.00272475]
[1770424927611,0.1024,2044.3,2043.4,1.74715227]
[1770424927806,4.89388924,2044.4,2043.4,2.97059851]
[1770424928256,4.89388924,2044.4,2043.5,1.58097687]
[1770424928421,6.0051445,2044.4,2043.4,0.041511]
[1770424929135,0.1024,2044.3,2043.4,0.041511]
[1770424929522,0.1024,2043.9,2042.6,1.62248787]
[1770424929739,1.81184997,2043.7,2042.0,1.58097687]
[1770424929941,1.81184997,2043.7,2042.3,0.041511]
[1770424930324,1.81184997,2043.7,2042.6,0.041511]
[1770424930614,1.81184997,2043.7,2042.3,0.041511]
[1770424930615,0.1024,2043.5,2042.3,0.041511]
[1770424931864,1.22345111,2043.4,2042.3,0.041511]
[1770424933664,1.22345111,2043.4,2042.3,1.62248787]
[1770424934338,1.22345111,2043.4,2042.3,2.84659105]
[1770424934533,1.22345111,2043.4,2042.3,2.84659333]
[1770424934744,1.22345111,2043.4,2042.4,0.28465933]
[1770424937066,2.93290108,2043.4,2042.2,0.041511]
[1770424938266,1.22345111,2043.4,2042.5,0.041511]
[1770424938444,4.89380444,2043.5,2042.6,1.58097687]
[1770424940056,4.89380444,2043.5,2042.5,1.62248787]
[1770424940244,4.89380444,2043.5,2042.6,0.28465032]
[1770424940466,1.22339124,2043.6,2042.8,0.041511]
[1770424940654,1.22503214,2044.2,2043.1,1.62248787]
[1770424940856,1.71144997,2044.6,2043.7,0.041511]
[1770424940857,0.002,2044.6,2043.7,0.041511]
[1770424941046,4.89141068,2044.5,2043.7,1.58097687]
[1770424941660,4.89141068,2044.5,2043.8,0.041511]
[1770424942273,4.89141068,2044.5,2043.4,1.62248787]
[1770424942472,0.002,2044.6,2043.4,1.62248787]
[1770424942771,0.002,2044.6,2043.5,0.28459725]
[1770424943077,0.002,2044.6,2043.7,0.041511]
[1770424943491,0.001,2044.0,2043.7,0.041511]
[1770424944060,5.97e-06,2044.6,2043.7,0.041511]
[1770424944784,0.10240597,2044.6,2043.5,0.28459725]
[1770424945867,1.81185594,2044.6,2043.5,0.28459725]
[1770424946067,1.81185594,2044.6,2043.1,0.041511]
[1770424946289,1.81184997,2044.3,2042.9,1.58097687]
[1770424946690,1.81184997,2044.3,2042.8,0.042511]
[1770424946691,1.70944997,2044.1,2042.8,0.042511]
[1770424947368,1.70944997,2043.9,2042.8,0.001]
[1770424947672,1.70944997,2043.8,2042.8,0.001]
[1770424949698,1.22327151,2043.7,2042.8,0.001]
[1770424949909,1.70944997,2043.5,2042.6,0.28465032]
[1770424950195,1.70944997,2043.5,2042.5,0.001]
[1770424950925,1.70944997,2043.4,2042.5,0.001]
[1770424951205,1.22327151,2043.7,2041.9,0.042511]
[1770424951206,1.81184997,2043.3,2041.9,0.001]
[1770424951407,1.81184997,2043.3,2041.6,1.5173276]
[1770424951408,1.70944997,2043.0,2041.6,0.292825]
[1770424951568,1.2239902,2042.5,2041.6,0.251314]
[1770424951883,1.81184997,2042.4,2041.2,0.001]
[1770424952073,1.81184997,2041.9,2041.0,0.001]
[1770424952403,1.70944997,2041.9,2041.0,0.001]
[1770424952603,0.1024,2042.1,2041.0,0.001]
[1770424952800,1.70944997,2042.3,2041.2,0.041511]
[1770424953000,1.2239902,2042.5,2041.4,1.22462075]
[1770424953207,1.2239902,2042.5,2041.5,0.40857818]
[1770424953385,1.2239902,2042.5,2041.5,0.45008918]
[1770424953574,0.1024,2042.5,2041.5,1.2660648]
[1770424953896,1.81184997,2042.5,2041.5,0.041511]
[1770424955876,1.22405013,2042.4,2041.7,0.001]
[1770424956597,4.89596083,2042.8,2041.8,0.041511]
[1770424956598,1.22387036,2042.8,2041.8,0.041511]
[1770424959375,1.22387036,2042.8,2041.8,1.26587367]
[1770424960089,1.22387036,2042.8,2041.9,0.61646594]
[1770424961406,1.73567538,2043.0,2041.9,0.61646594]
[1770424961708,1.73567538,2043.0,2041.8,0.041511]
[1770424962500,1.73567538,2042.9,2041.7,0.001]
[1770424963102,1.83807538,2042.8,2041.7,0.001]
[1770424963782,1.22387036,2042.7,2041.7,0.001]
[1770424965209,2.95954574,2042.7,2041.7,0.001]
[1770424966708,4.24483661,2042.7,2041.7,0.001]
[1770424969206,0.002,2042.5,2041.7,0.001]
[1770424969509,0.002,2042.5,2041.5,1.26705464]
[1770424969510,1.73567538,2042.2,2041.5,0.001]
[1770424969718,1.73567538,2042.1,2041.4,0.001]
[1770424969905,2.56082881,2042.0,2041.4,0.001]
[1770424970281,2.56082881,2042.0,2041.2,0.001]
[1770424970916,2.96002525,2041.9,2041.2,0.001]
[1770424971223,2.96002525,2041.9,2040.9,0.001]
[1770424972091,1.73567538,2041.8,2040.9,0.001]
[1770424972299,0.29600253,2041.7,2040.9,0.001]
[1770424972523,1.73567538,2041.8,2040.9,0.001]
[1770424972834,1.22434987,2041.9,2040.9,0.001]
[1770424973113,1.73567538,2041.8,2040.9,0.001]
[1770424974122,1.73567538,2041.6,2040.9,0.001]
[1770424974291,1.73567538,2041.6,2040.7,0.001]
[1770424975184,1.73567538,2041.4,2040.7,0.001]
[1770424975515,1.73567538,2041.2,2040.3,0.001]
[1770424975729,0.29602651,2041.3,2040.3,0.001]
[1770424975911,2.03170189,2041.3,2040.3,0.001]
[1770424976623,1.22458976,2041.5,2040.3,0.001]
[1770424976830,0.1024,2041.4,2040.4,0.041511]
[1770424977113,0.1024,2041.4,2040.4,1.26675858]
[1770424977515,1.22470974,2041.3,2040.4,1.26675858]
[1770424977893,1.22470974,2041.3,2040.5,0.61689901]
[1770424978090,1.22470974,2041.3,2040.4,0.041511]
[1770424979492,4.89883897,2041.4,2040.4,0.041511]
[1770424980508,4.89883897,2041.7,2040.4,0.041511]
[1770424980509,1.22440983,2041.9,2041.0,0.041511]
[1770424980710,4.89689733,2042.2,2041.0,0.041511]
[1770424980711,1.22417001,2042.2,2041.3,0.041511]
[1770424981416,4.89668005,2042.4,2041.3,0.041511]
[1770424981621,4.89668005,2042.4,2041.6,0.041511]
[1770424981819,0.002,2042.0,2041.6,0.041511]
[1770424981994,1.22405013,2042.4,2041.6,0.041511]
[1770424982317,1.22351098,2043.3,2042.2,0.041511]
[1770424982994,1.73567538,2043.0,2041.6,1.77161449]
[1770424983199,1.73567538,2042.9,2041.6,0.041511]
[1770424983499,1.22381045,2042.8,2041.6,1.26601575]
[1770424983715,1.22381045,2042.8,2041.9,0.041511]
[1770424984219,2.95948583,2042.8,2041.5,0.041511]
[1770424984432,2.52114815,2042.7,2041.5,0.29762826]
[1770424984622,1.73567538,2042.6,2041.5,0.041511]
[1770424984806,0.1024,2042.5,2041.6,1.2245247]
[1770424985121,0.1024,2042.5,2041.5,1.26605857]
[1770424985317,0.1024,2042.5,2041.5,0.041511]
[1770424985522,1.22405013,2042.4,2041.5,0.041511]
[1770424985820,0.62226507,2042.3,2041.5,0.65800774]
[1770424986003,0.62226507,2042.3,2041.5,0.041511]
[1770424986411,1.22405013,2042.4,2041.5,2.94979611]
[1770424986644,0.78547277,2042.7,2041.5,2.94979611]
[1770424986645,1.22387036,2042.7,2041.8,1.72520868]
[1770424986947,1.22387036,2042.7,2042.1,0.041511]
[1770424988032,4.89524182,2043.0,2042.1,1.26571642]
[1770424988252,4.89524182,2043.0,2042.2,0.61627187]
[1770424988817,4.89524182,2043.0,2042.4,0.041511]
[1770424989226,4.89524182,2043.0,2042.2,0.61627187]
[1770424989432,4.89524182,2043.0,2042.1,0.041511]
[1770424989749,1.57517499,2042.9,2041.8,0.041511]
[1770424990058,2.79898544,2042.8,2041.8,0.041511]
[1770424990258,1.22381045,2042.8,2041.9,1.7343063]
[1770424990423,4.89476343,2043.0,2042.1,0.041511]
[1770424990424,4.8947707,2043.0,2042.1,0.041511]
[1770424990929,4.8947707,2043.0,2042.4,0.041511]
[1770424991126,0.002,2043.1,2042.4,0.041511]
[1770424991327,1.22369065,2043.0,2042.4,0.041511]
[1770424991731,1.22369065,2043.0,2041.8,1.26591711]
[1770424991732,3.9003689,2043.0,2041.8,1.22440611]
[1770424991972,3.9003689,2043.0,2041.8,0.041511]
[1770424992142,2.32519391,2043.0,2042.1,0.041511]
[1770424993844,1.22369065,2043.0,2042.1,0.041511]
[1770424994045,0.002,2043.1,2042.1,1.26570402]
[1770424994276,0.002,2043.1,2042.1,1.26572619]
[1770424995073,0.002,2042.8,2042.1,1.26572619]
[1770424995242,0.002,2042.8,2042.2,0.61628773]
[1770424996358,0.002,2042.8,2042.2,1.84044665]
[1770424996666,0.002,2042.8,2042.2,0.61628773]
[1770424996864,0.002,2042.8,2042.1,1.26573882]
[1770424997177,0.002,2042.8,2042.2,1.22416403]
[1770424997376,0.002,2042.8,2042.2,1.22415699]
[1770424998553,0.002,2042.8,2041.8,1.22437757]
[1770424998867,1.57717499,2042.8,2041.7,0.001]
[1770424999661,1.57517499,2042.2,2041.5,0.001]
[1770424999859,1.57517499,2042.2,2041.0,1.22485315]
[1770425000061,1.57517499,2042.2,2041.0,1.22487581]
[1770425000286,1.57517499,2042.2,2040.9,1.22490865]
[1770425000450,1.22422995,2042.1,2041.0,0.78591268]
[1770425000650,1.22422995,2042.1,2041.0,3.78660383]
[1770425000872,1.22422995,2042.1,2041.0,2.05229753]
[1770425002088,2.79940494,2042.1,2041.0,2.05229753]
[1770425003988,1.22422995,2042.1,2041.3,0.041511]
[1770425004164,1.22393028,2042.6,2041.3,1.7758173]
[1770425004479,0.76948264,2042.5,2041.6,0.041511]
[1770425004976,1.22405013,2042.4,2041.6,0.041511]
[1770425005565,2.79922512,2042.4,2041.6,0.041511]
[1770425006580,2.79922512,2042.4,2041.3,1.26617309]
[1770425006783,2.79922512,2042.4,2041.2,1.22473664]
[1770425007012,1.22417001,2042.2,2041.1,4.89929148]
[1770425007800,1.22417001,2042.2,2041.3,0.041511]
[1770425008293,1.22417001,2042.2,2041.3,0.042511]
[1770425008495,1.22417001,2042.2,2041.0,3.78655972]
[1770425008699,1.22417001,2042.2,2041.1,4.89929148]
[1770425008899,4.89668005,2042.3,2041.2,2.09343966]
[1770425009102,6.47185504,2042.3,2041.2,2.09343966]
[1770425009708,6.47185504,2042.3,2041.3,0.041511]
[1770425010578,4.89668005,2042.3,2041.3,0.041511]
[1770425010980,2.79928506,2042.4,2041.3,0.041511]
[1770425011181,2.42169579,2042.3,2041.3,0.62245976]
[1770425012196,2.42169579,2042.3,2041.3,1.84716535]
[1770425012401,2.42169579,2042.3,2041.3,0.62245976]
[1770425012787,2.42169579,2042.3,2041.3,0.58094876]
[1770425012994,2.42169579,2042.3,2041.3,1.8056498]
[1770425013305,1.5887506,2042.2,2041.3,1.8056498]
[1770425014172,4.89632706,2042.4,2041.6,0.041511]
[1770425014377,0.002,2042.6,2041.6,0.041511]
[1770425014378,4.89608242,2042.5,2041.6,0.041511]
[1770425015203,0.002,2042.6,2041.6,0.041511]
[1770425015379,1.57717499,2042.6,2041.6,0.6579627]
[1770425016915,1.57717499,2042.6,2041.6,1.26603978]
[1770425017210,1.2239902,2042.5,2041.6,1.26603978]
[1770425017414,1.2239902,2042.5,2041.7,1.5910233]
[1770425018591,1.22595347,2042.6,2041.9,0.041511]
[1770425019333,0.002,2042.6,2041.9,0.041511]
[1770425019489,0.002,2042.6,2041.9,0.81697755]
[1770425020198,0.002,2042.6,2041.9,0.041511]
[1770425020400,0.002,2042.6,2041.9,1.26585434]
[1770425021116,1.70400559,2042.6,2041.6,1.26600171]
[1770425021419,1.2239902,2042.5,2041.6,1.26600171]
[1770425021624,1.2239902,2042.5,2041.7,0.001]
[1770425021625,2.92599579,2042.5,2041.7,0.001]
[1770425021820,4.19798297,2042.5,2041.7,0.001]
[1770425022992,15.73103998,2042.2,2041.5,0.001]
[1770425023192,1.70200559,2042.1,2041.5,0.001]
[1770425023393,0.9544756,2042.5,2041.9,1.5910233]
[1770425023597,1.22301782,2044.2,2042.7,1.5910233]
[1770425023821,0.96975674,2044.6,2043.8,0.006]
[1770425024026,0.96975674,2044.6,2043.8,1.43220237]
[1770425024198,2.67176233,2044.6,2043.2,2.49678113]
[1770425024401,1.70200559,2044.4,2043.2,0.041511]
[1770425025232,0.1024,2044.3,2043.5,0.041511]
[1770425025419,1.22297231,2044.2,2043.5,0.041511]
[1770425026931,1.22297231,2044.2,2043.2,0.041511]
[1770425026932,1.70200559,2044.1,2043.2,0.041511]
[1770425027243,1.99450338,2044.0,2042.7,0.041511]
[1770425027546,2.92521725,2043.8,2042.7,0.041511]
[1770425027733,1.70200559,2043.7,2042.7,0.041511]
[1770425027930,1.22321166,2043.8,2042.1,1.2242021]
[1770425027931,1.80440559,2043.6,2042.1,1.2242021]
[1770425028314,1.80440559,2043.6,2042.2,0.61628586]
[1770425028514,1.80440559,2043.6,2042.3,0.041511]